fUSD/lending_fUSD_20250828
["ID","MTS","AMOUNT","RATE_DAILY","PERIOD"]
[381892875,1756392646181,-258.26,0.00039761,7]
[381892877,1756392646191,-150.0,0.0003986,120]
[381892878,1756392646199,-367.37454,0.00039888,7]
[381892880,1756392646208,-3306.37087,0.00039888,30]
[381892882,1756392646218,-163.93249948,0.0003989,2]
[381892884,1756392646227,-5559.46095976,0.000399,15]
[381892886,1756392646237,-232.0,0.00039909,7]
[381892888,1756392646246,-231.0,0.00039917,2]
[381892890,1756392646255,-27208.7563265,0.00039989,3]
[381892891,1756392646264,-400.0,0.00039999,7]
[381892893,1756392646274,-400.0,0.00039999,7]
[381892895,1756392646283,-400.0,0.00039999,7]
[381892897,1756392646292,-400.0,0.00039999,7]
[381892899,1756392646302,-400.0,0.00039999,7]
[381892901,1756392646311,-400.0,0.00039999,7]
[381892903,1756392646321,-400.0,0.00039999,7]
[381892905,1756392646330,-400.0,0.00039999,7]
[381892906,1756392646340,-400.0,0.00039999,7]
[381892908,1756392646349,-400.0,0.00039999,7]
[381892910,1756392646359,-400.0,0.00039999,7]
[381892912,1756392646368,-406.4,0.00039999,7]
[381892914,1756392646378,-15699.27535663,0.0004,40]
[381892917,1756392646404,-34300.72464337,0.0004,40]
[381892919,1756392646413,-217.0,0.0004,120]
[381892921,1756392646422,-627.020679,0.0004,120]
[381892923,1756392646431,-150.0,0.0004,120]
[381892925,1756392646447,-300.0,0.0004,120]
[381892927,1756392646467,-462.51,0.0004,7]
[381892929,1756392646476,-150.0,0.00040004,120]
[381892931,1756392646486,-336.62,0.00040035,7]
[381892933,1756392646495,-400.0,0.00040035,7]
[381892934,1756392646504,-400.0,0.00040035,7]
[381892936,1756392646519,-156.82,0.00040035,7]
[381892938,1756392646528,-400.0,0.00040035,7]
[381892940,1756392646538,-232.0,0.00040042,2]
[381892942,1756392646547,-27208.7563265,0.00040078,3]
[381892944,1756392646557,-3306.37087,0.00040088,30]
[381892946,1756392646566,-620.51941904,0.0004019,120]
[381892948,1756392646575,-1966.20107962,0.00040238,35]
[381892950,1756392646584,-3306.37087,0.00040288,30]
[381892951,1756392646593,-400.0,0.00040309,7]
[381892953,1756392646602,-400.0,0.00040309,7]
[381892955,1756392646611,-400.0,0.00040309,7]
[381892957,1756392646621,-3306.37087,0.00040488,30]
[381892959,1756392646630,-5559.46095972,0.00040567,15]
[381892961,1756392646640,-400.0,0.00040583,7]
[381892963,1756392646649,-400.0,0.00040583,7]
[381892965,1756392646659,-400.0,0.00040583,7]
[381892966,1756392646667,-2179.26737077,0.00040602,15]
[381892968,1756392646677,-3306.37087,0.00040688,30]
[381892970,1756392646686,-400.0,0.00040857,7]
[381892972,1756392646695,-400.0,0.00040857,7]
[381892974,1756392646702,-400.0,0.00040857,7]
[381892976,1756392646712,-27208.7563265,0.00040877,3]
[381892978,1756392646722,-400.0,0.00040887,7]
[381892979,1756392646731,-400.0,0.00040887,7]
[381892982,1756392646743,-406.07,0.00040887,7]
[381892986,1756392646756,-400.0,0.00040887,7]
[381892989,1756392646765,-400.0,0.00040887,7]
[381892992,1756392646774,-400.0,0.00040887,7]
[381892994,1756392646783,-3306.37087,0.00040888,30]
[381892997,1756392646792,-93135.0962292,0.000409,120]
[381892999,1756392646801,-27208.7563265,0.0004099,3]
[381893001,1756392646810,-6557.52266264,0.0004099,3]
[381893012,1756392646912,-466.86261706,0.0004099,3]
[381893014,1756392646923,-764.93573146,0.0004099,3]
[381893016,1756392646934,-2149.93729945,0.0004099,3]
[381893018,1756392646945,-4256.82728835,0.0004099,3]
[381893025,1756392647012,-160.0,0.0002481,2]
[381893028,1756392647025,-400.0,0.00038356,7]
[381893029,1756392647034,-253.22639412,0.00038356,7]
[381893032,1756392647045,-146.77360588,0.00038356,7]
[381893033,1756392647054,-400.0,0.00038356,7]
[381893035,1756392647063,-332.73639412,0.0003863,7]
[381893037,1756392647074,-67.26360588,0.0003863,7]
[381893039,1756392647084,-191.50639412,0.0003863,7]
[381893041,1756392647095,-208.49360588,0.0003863,7]
[381893043,1756392647104,-410.33,0.00038904,7]
[381893045,1756392647112,-400.0,0.00039487,7]
[381893047,1756392647121,-1425.57243112,0.0004099,3]
[381893049,1756392647133,-3025.5,0.0004099,3]
[381893051,1756392647149,-988.84039262,0.0004099,3]
[381893053,1756392647159,-25.47774849,0.00041,41]
[381893055,1756392647170,-458.97412852,0.00041,41]
[381893057,1756392647183,-35494.76338412,0.00041,41]
[381893060,1756392647194,-417.52905912,0.00041,41]
[381893069,1756392647284,-400.0,0.00038356,7]
[381893071,1756392647294,-400.0,0.00038356,7]
[381893072,1756392647303,-400.0,0.00039999,7]
[381893073,1756392647312,-2607.079,0.00041,41]
[381893074,1756392647323,-10996.17667975,0.00041,41]
[381893075,1756392647331,-10000.0,0.00041,120]
[381893076,1756392647340,-19635.9984227,0.00041086,3]
[381893077,1756392647349,-3306.37087,0.00041088,30]
[381893078,1756392647359,-150.0,0.00041096,10]
[381893079,1756392647368,-197.67,0.00041096,2]
[381893080,1756392647377,-217.0,0.000411,2]
[381893081,1756392647386,-500.0,0.000411,2]
[381893082,1756392647400,-400.0,0.00041131,120]
[381893083,1756392647410,-400.0,0.00041131,120]
[381893084,1756392647419,-391.0,0.0004114,30]
[381893085,1756392647428,-391.0,0.0004114,30]
[381893086,1756392647439,-400.0,0.00041161,120]
[381893087,1756392647448,-13133.15044599,0.00041223,3]
[381893088,1756392647460,-2290.07543999,0.00041223,3]
[381893089,1756392647477,-450.0,0.00041223,3]
[381893090,1756392647488,-11335.53044052,0.00041223,3]
[381893091,1756392647497,-5559.46095972,0.00041233,15]
[381893092,1756392647507,-500.0,0.00041287,120]
[381893093,1756392647515,-3306.37087,0.00041288,30]
[381893094,1756392647525,-230.44,0.00041405,120]
[381893095,1756392647534,-400.0,0.00041405,120]
[381893097,1756392647543,-400.0,0.00041435,120]
[381893098,1756392647552,-3306.37087,0.00041488,30]
[381893100,1756392647561,-150.0,0.00041519,120]
[381893102,1756392647572,-1367.01,0.00041643,42]
[381893104,1756392647581,-250.0,0.00041644,10]
[381893106,1756392647591,-400.0,0.00041679,120]
[381893108,1756392647600,-3306.37087,0.00041688,30]
[381893110,1756392647609,-328.21,0.00041709,120]
[381893112,1756392647618,-3306.37087,0.00041888,30]
[381893114,1756392647628,-5559.46095972,0.000419,15]
[381893116,1756392647637,-2179.26737077,0.00041925,15]
[381893118,1756392647649,-400.0,0.00041953,120]
[381893120,1756392647660,-14400.13678927,0.0004198,3]
[381893129,1756392647737,-300.0,0.00023933,12]
[381893131,1756392647747,-7150.41139332,0.00025763,2]
[381893133,1756392647756,-300.80476993,0.00038356,7]
[381893135,1756392647765,-177.32,0.00039487,7]
[381893137,1756392647774,-400.0,0.00039999,7]
[381893139,1756392647784,-5235.86163343,0.0004198,3]
[381893141,1756392647793,-27208.7563265,0.0004199,3]
[381893143,1756392647803,-19635.9984227,0.0004199,3]
[381893145,1756392647813,-25664.52588362,0.0004199,3]
[381893148,1756392647824,-333.07857281,0.0004199,3]
[381893150,1756392647835,-1211.15187007,0.0004199,3]
[381893152,1756392647844,-895.67012993,0.0004199,3]
[381893154,1756392647856,-3271.027642,0.0004199,3]
[381893157,1756392647871,-1147.6,0.0004199,3]
[381893159,1756392647882,-3334.29510196,0.0004199,3]
[381893161,1756392647897,-393.24021592,0.000249,2]
[381893163,1756392647906,-10987.40554881,0.0004199,3]
[381893165,1756392647915,-253.21279361,0.0004199,7]
[381893168,1756392647925,-50000.0,0.00042,42]
[381893170,1756392647934,-337.54,0.00042,30]
[381893172,1756392647944,-10000.0,0.00042,120]
[381893174,1756392647953,-300.0,0.00042,120]
[381893175,1756392647963,-150.0,0.00042014,120]
[381893177,1756392647972,-174.93940297,0.00042027,7]
[381893179,1756392647981,-500.0,0.00042154,120]
[381893181,1756392647991,-350.0,0.00042192,10]
[381893183,1756392648000,-212.0,0.000422,2]
[381893185,1756392648009,-3720.754885,0.0004222,2]
[381893187,1756392648018,-400.0,0.00042227,120]
[381893189,1756392648028,-150.0,0.00042236,120]
[381893191,1756392648038,-150.0,0.00042461,120]
[381893193,1756392648047,-400.0,0.00042501,120]
[381893195,1756392648056,-200.0,0.00042526,120]
[381893197,1756392648066,-5559.46095972,0.00042567,15]
[381893199,1756392648075,-169.58850344,0.0004264,20]
[381893201,1756392648085,-450.0,0.0004274,10]
[381893203,1756392648094,-202.52012705,0.00042775,120]
[381893205,1756392648103,-1631.7898,0.000429,10]
[381893207,1756392648113,-5000.0,0.000429,120]
[381893209,1756392648123,-18847.54776347,0.0004298,3]
[381893419,1756392794970,154.04,0.00013699,2]
[381893421,1756393046096,150.0,0.00030136,120]
[381893424,1756393313961,500.0,0.00013699,2]
[381893427,1756393695273,919.68,0.00030136,120]
[381893458,1756393832336,-726.77055915,0.0002,7]
[381893459,1756393832377,-5352.22944085,0.0002,7]
[381893460,1756393832387,-161.49,0.0002,4]
[381893461,1756393832396,-453.22,0.0002,2]
[381893462,1756393832405,-152.2,0.0002,2]
[381893463,1756393832415,-458.8,0.0002,2]
[381893464,1756393832424,-446.62,0.0002,2]
[381893465,1756393832434,-150.47,0.0002,2]
[381893466,1756393832444,-445.85,0.0002,2]
[381893467,1756393832454,-445.92,0.0002,2]
[381893468,1756393832466,-151.94,0.0002,2]
[381893469,1756393832475,-447.27,0.0002,2]
[381893470,1756393832484,-457.21,0.0002,2]
[381893471,1756393832494,-154.04,0.00020187,2]
[381893472,1756393832503,-150.89,0.00021619,2]
[381893473,1756393832513,-150.77,0.00021626,2]
[381893474,1756393832522,-152.42,0.00021626,2]
[381893475,1756393832531,-151.32,0.00021649,2]
[381893476,1756393832540,-448.83,0.00021657,2]
[381893477,1756393832550,-300.0,0.00021697,2]
[381893478,1756393832560,-445.39,0.00021698,2]
[381893479,1756393832570,-9999.99,0.00021698,2]
[381893480,1756393832579,-5092.93,0.00021698,2]
[381893481,1756393832588,-43388.08,0.00021698,2]
[381893482,1756393832598,-297.66,0.00021698,2]
[381893483,1756393832607,-152.19,0.00021738,2]
[381893484,1756393832616,-452.18,0.00021752,2]
[381893485,1756393832625,-1311.16,0.00021901,2]
[381893486,1756393832634,-152.39,0.00022095,2]
[381893487,1756393832643,-409.43065426,0.0002215,2]
[381893488,1756393832652,-194.41245711,0.00022213,2]
[381893489,1756393832662,-5000.0,0.00022214,2]
[381893490,1756393832672,-451.32,0.0002254,2]
[381893491,1756393832681,-505.60549808,0.000226,2]
[381893492,1756393832690,-455.27,0.00023222,2]
[381893493,1756393832700,-6146.0,0.00023461,2]
[381893494,1756393832709,-4155.0,0.00023461,2]
[381893495,1756393832719,-21104.0,0.00023461,2]
[381893496,1756393832730,-718.0,0.00023461,2]
[381893497,1756393832741,-150.9,0.00023522,2]
[381893498,1756393832751,-443.54,0.00024605,2]
[381893499,1756393832760,-969.99253269,0.000249,2]
[381893500,1756393832771,-926.0,0.00025001,2]
[381893501,1756393832780,-3374.0,0.00025001,2]
[381893502,1756393832789,-2031.0,0.00025001,2]
[381893503,1756393832798,-1256.0,0.00025001,2]
[381893504,1756393832808,-1658.0,0.00025001,2]
[381893505,1756393832818,-664.136,0.00025001,2]
[381893506,1756393832827,-599.0,0.00025001,2]
[381893507,1756393832836,-1298.0,0.00025001,2]
[381893508,1756393832845,-180.17552958,0.00025001,2]
[381893509,1756393832855,-253.89096968,0.0002513,18]
[381893510,1756393832864,-969.99253261,0.00025859,4]
[381893511,1756393832874,-154.04,0.00026676,2]
[381893512,1756393832884,-969.99253261,0.00026817,6]
[381893513,1756393832893,-15511.79036839,0.00027,7]
[381893514,1756393832904,-530.0,0.00027137,2]
[381893515,1756393832913,-742.442,0.00027438,16]
[381893516,1756393832922,-969.99253261,0.00027776,8]
[381893517,1756393832931,-1918.89,0.00028472,2]
[381893518,1756393832940,-160.0,0.0002873,7]
[381893519,1756393832949,-969.99253261,0.00028734,10]
[381893520,1756393832958,-1000.0,0.00028752,2]
[381893521,1756393832967,-200.0,0.00028896,2]
[381893522,1756393832976,-969.99253261,0.00029693,12]
[381893523,1756393832986,-969.99253261,0.00030652,14]
[381893524,1756393832995,-653.78021124,0.0003151,2]
[381893525,1756393833005,-969.99253261,0.0003161,16]
[381893526,1756393833014,-1000.0,0.00032346,2]
[381893527,1756393833024,-1694.0,0.00032354,2]
[381893528,1756393833033,-1694.0,0.00032688,2]
[381893529,1756393833043,-653.78021123,0.00032987,2]
[381893530,1756393833053,-1694.0,0.00033021,2]
[381893531,1756393833063,-154.04,0.00033165,2]
[381893532,1756393833072,-1694.0,0.00033355,2]
[381893533,1756393833082,-552.47322834,0.00033355,2]
[381893534,1756393833092,-1000.0,0.00033475,120]
[381893535,1756393833101,-350.1,0.00033475,120]
[381893536,1756393833111,-969.99253261,0.00033528,20]
[381893537,1756393833121,-1694.0,0.00033688,2]
[381893538,1756393833131,-150.0,0.00033928,120]
[381893539,1756393833140,-200.0,0.00034,30]
[381893540,1756393833150,-1694.0,0.00034022,2]
[381893541,1756393833160,-1694.0,0.00034355,2]
[381893542,1756393833171,-653.78021123,0.00034463,2]
[381893543,1756393833182,-969.99253261,0.00034486,22]
[381893544,1756393833192,-202.26044533,0.00035,120]
[381893545,1756393833202,-969.99253261,0.00035445,24]
[381893546,1756393833212,-168.8956986,0.00035616,2]
[381893547,1756393833222,-1000.0,0.0003594,2]
[381893548,1756393833232,-653.78021123,0.0003594,2]
[381893549,1756393833241,-16262.2906,0.00036288,2]
[381893550,1756393833251,-969.99253261,0.00036403,26]
[381893551,1756393833261,-150.0,0.00036699,120]
[381893552,1756393833270,-2291.0,0.00037,2]
[381893553,1756393833280,-155.12985476,0.000372,120]
[381893554,1756393833290,-150.0,0.00037223,120]
[381893555,1756393833299,-969.99253261,0.00037362,29]
[381893556,1756393833310,-150.0,0.00037381,7]
[381893557,1756393833319,-280.0,0.000374,30]
[381893558,1756393833328,-653.78021123,0.00037417,2]
[381893559,1756393833338,-5261.0,0.00037418,117]
[381893560,1756393833347,-150.0,0.00037658,7]
[381893561,1756393833356,-348.11481114,0.00037753,120]
[381893562,1756393833365,-150.0,0.00037935,7]
[381893563,1756393833375,-150.0,0.00038212,7]
[381893564,1756393833384,-168.74979918,0.00038256,2]
[381893565,1756393833393,-969.99253261,0.00038321,31]
[381893566,1756393833403,-24653.72225237,0.00038346,3]
[381893567,1756393833419,-1360.0100145,0.00038346,3]
[381893568,1756393833431,-447.53075393,0.00038346,3]
[381893569,1756393833442,-400.0,0.00038356,7]
[381893570,1756393833451,-400.0,0.00038356,7]
[381893571,1756393833461,-223.37,0.00038356,7]
[381893572,1756393833471,-445.59,0.00038356,7]
[381893573,1756393833480,-214.02,0.00038356,7]
[381893574,1756393833489,-239.49,0.00038356,7]
[381893575,1756393833499,-400.0,0.00038356,7]
[381893576,1756393833509,-490.32,0.00038356,7]
[381893577,1756393833518,-420.39,0.00038356,7]
[381893578,1756393833527,-400.0,0.00038356,7]
[381893579,1756393833537,-280.08791436,0.00038356,7]
[381893580,1756393833708,-270.19,0.00038356,7]
[381893581,1756393833718,-196.74,0.00038356,7]
[381893582,1756393833731,-400.0,0.00038356,7]
[381893583,1756393833741,-400.0,0.00038356,7]
[381893584,1756393833750,-312.0,0.00038356,7]
[381893585,1756393833759,-400.0,0.00038356,7]
[381893586,1756393833770,-400.0,0.00038356,7]
[381893587,1756393833779,-400.0,0.00038356,7]
[381893588,1756393833789,-400.0,0.00038356,7]
[381893589,1756393833799,-400.0,0.00038356,7]
[381893590,1756393833811,-400.0,0.00038356,7]
[381893591,1756393833822,-400.0,0.00038356,7]
[381893592,1756393833831,-400.0,0.00038356,7]
[381893593,1756393833841,-400.0,0.00038356,7]
[381893594,1756393833850,-411.4,0.00038356,7]
[381893595,1756393833860,-400.0,0.00038356,7]
[381893596,1756393833870,-400.0,0.00038356,7]
[381893597,1756393833880,-500.0,0.00038356,7]
[381893598,1756393833890,-400.0,0.00038356,7]
[381893599,1756393833900,-400.0,0.00038356,7]
[381893600,1756393833909,-404.39,0.00038356,7]
[381893601,1756393833919,-535.02504422,0.00038356,7]
[381893602,1756393833928,-400.0,0.00038356,7]
[381893603,1756393833939,-420.79,0.00038356,7]
[381893604,1756393833949,-400.0,0.00038356,7]
[381893605,1756393833958,-400.0,0.00038356,7]
[381893606,1756393833968,-400.0,0.00038356,7]
[381893607,1756393833978,-400.0,0.00038356,7]
[381893608,1756393833987,-400.0,0.00038356,7]
[381893609,1756393833997,-417.79,0.00038356,7]
[381893610,1756393834006,-400.0,0.00038356,7]
[381893611,1756393834016,-423.97,0.00038356,7]
[381893612,1756393834026,-400.0,0.00038356,7]
[381893613,1756393834036,-253.86109888,0.00038356,7]
[381893614,1756393834046,-400.0,0.00038356,7]
[381893615,1756393834055,-476.57888782,0.00038356,7]
[381893616,1756393834064,-400.0,0.00038356,7]
[381893617,1756393834073,-400.0,0.00038356,7]
[381893618,1756393834083,-502.55,0.00038356,7]
[381893619,1756393834093,-400.0,0.00038356,7]
[381893620,1756393834103,-400.0,0.00038356,7]
[381893621,1756393834113,-400.0,0.00038356,7]
[381893622,1756393834124,-400.0,0.00038356,7]
[381893623,1756393834133,-400.0,0.00038356,7]
[381893624,1756393834143,-374.36,0.00038356,7]
[381893625,1756393834152,-400.0,0.00038356,7]
[381893626,1756393834161,-400.0,0.00038356,7]
[381893627,1756393834171,-400.0,0.00038356,7]
[381893628,1756393834180,-400.0,0.00038356,7]
[381893629,1756393834191,-400.0,0.00038356,7]
[381893630,1756393834200,-400.0,0.00038356,7]
[381893631,1756393834210,-400.0,0.00038356,7]
[381893632,1756393834219,-400.0,0.00038356,7]
[381893633,1756393834232,-400.0,0.00038356,7]
[381893634,1756393834241,-418.77,0.00038356,7]
[381893635,1756393834250,-400.0,0.00038356,7]
[381893636,1756393834260,-400.0,0.00038356,7]
[381893637,1756393834269,-402.2087874,0.00038356,7]
[381893638,1756393834278,-400.0,0.00038356,7]
[381893639,1756393834289,-400.0,0.00038356,7]
[381893640,1756393834298,-400.0,0.00038356,7]
[381893641,1756393834308,-400.0,0.00038356,7]
[381893642,1756393834317,-400.0,0.00038356,7]
[381893643,1756393834326,-400.0,0.00038356,7]
[381893644,1756393834335,-532.37815878,0.00038356,7]
[381893645,1756393834344,-400.0,0.00038356,7]
[381893646,1756393834353,-400.0,0.00038356,7]
[381893647,1756393834363,-400.0,0.00038356,7]
[381893648,1756393834371,-467.43,0.00038356,7]
[381893649,1756393834381,-450.87,0.00038356,7]
[381893650,1756393834390,-400.0,0.00038356,7]
[381893651,1756393834399,-400.0,0.00038356,7]
[381893652,1756393834409,-400.0,0.00038356,7]
[381893653,1756393834418,-400.0,0.00038356,7]
[381893654,1756393834427,-400.0,0.00038356,7]
[381893655,1756393834437,-400.0,0.00038356,7]
[381893656,1756393834446,-400.0,0.00038356,7]
[381893657,1756393834455,-400.0,0.00038356,7]
[381893658,1756393834465,-400.0,0.00038356,7]
[381893659,1756393834473,-400.0,0.00038356,7]
[381893660,1756393834483,-400.0,0.00038356,7]
[381893661,1756393834492,-509.31,0.00038356,7]
[381893662,1756393834501,-400.0,0.00038356,7]
[381893663,1756393834510,-400.0,0.00038356,7]
[381893664,1756393834519,-400.0,0.00038356,7]
[381893665,1756393834528,-374.16593937,0.00038356,7]
[381893666,1756393834537,-400.0,0.00038356,7]
[381893667,1756393834546,-400.0,0.00038356,7]
[381893668,1756393834555,-400.0,0.00038356,7]
[381893669,1756393834565,-400.0,0.00038356,7]
[381893670,1756393834574,-451.96,0.00038356,7]
[381893671,1756393834583,-400.0,0.00038356,7]
[381893672,1756393834592,-215.65,0.00038356,7]
[381893673,1756393834602,-400.0,0.00038356,7]
[381893674,1756393834610,-404.38033794,0.00038356,7]
[381893675,1756393834620,-400.0,0.00038356,7]
[381893676,1756393834629,-400.0,0.00038356,7]
[381893677,1756393834639,-427.40695986,0.00038356,7]
[381893678,1756393834648,-400.0,0.00038356,7]
[381893679,1756393834658,-400.0,0.00038356,7]
[381893680,1756393834667,-400.0,0.00038356,7]
[381893681,1756393834676,-400.0,0.00038356,7]
[381893682,1756393834687,-409.13001798,0.00038356,7]
[381893683,1756393834696,-400.0,0.00038356,7]
[381893684,1756393834705,-400.0,0.00038356,7]
[381893685,1756393834715,-400.0,0.00038356,7]
[381893686,1756393834725,-400.0,0.00038356,7]
[381893687,1756393834735,-400.0,0.00038356,7]
[381893688,1756393834747,-400.0,0.00038356,7]
[381893689,1756393834756,-400.0,0.00038356,7]
[381893690,1756393834765,-400.0,0.00038356,7]
[381893691,1756393834776,-300.0,0.00038356,7]
[381893692,1756393834786,-400.0,0.00038356,7]
[381893693,1756393834795,-400.0,0.00038356,7]
[381893694,1756393834804,-400.0,0.00038356,7]
[381893695,1756393834814,-400.0,0.00038356,7]
[381893696,1756393834823,-400.0,0.00038356,7]
[381893697,1756393834833,-400.0,0.00038356,7]
[381893698,1756393834842,-400.0,0.00038356,7]
[381893699,1756393834851,-400.0,0.00038356,7]
[381893700,1756393834860,-400.0,0.00038356,7]
[381893701,1756393834869,-400.0,0.00038356,7]
[381893702,1756393834879,-400.0,0.00038356,7]
[381893703,1756393834888,-400.0,0.00038356,7]
[381893704,1756393834897,-400.0,0.00038356,7]
[381893705,1756393834906,-400.0,0.00038356,7]
[381893706,1756393834915,-400.0,0.00038356,7]
[381893707,1756393834925,-433.40471513,0.00038356,7]
[381893708,1756393834935,-400.0,0.00038356,7]
[381893709,1756393834944,-400.0,0.00038356,7]
[381893710,1756393834953,-400.0,0.00038356,7]
[381893711,1756393834963,-400.0,0.00038356,7]
[381893712,1756393834972,-400.0,0.00038356,7]
[381893713,1756393834982,-477.14,0.00038356,7]
[381893714,1756393834991,-400.0,0.00038356,7]
[381893715,1756393835001,-400.0,0.00038356,7]
[381893716,1756393835010,-299.19,0.00038356,7]
[381893717,1756393835019,-400.0,0.00038356,7]
[381893718,1756393835029,-400.0,0.00038356,7]
[381893719,1756393835039,-400.0,0.00038356,7]
[381893720,1756393835048,-400.0,0.00038356,7]
[381893721,1756393835057,-400.0,0.00038356,7]
[381893722,1756393835066,-400.0,0.00038356,7]
[381893723,1756393835076,-400.0,0.00038356,7]
[381893724,1756393835086,-400.0,0.00038356,7]
[381893725,1756393835095,-400.0,0.00038356,7]
[381893726,1756393835104,-410.91,0.00038356,7]
[381893727,1756393835113,-400.0,0.00038356,7]
[381893728,1756393835122,-457.57,0.00038356,7]
[381893729,1756393835132,-400.0,0.00038356,7]
[381893730,1756393835141,-400.0,0.00038356,7]
[381893731,1756393835151,-400.0,0.00038356,7]
[381893732,1756393835160,-400.0,0.00038356,7]
[381893733,1756393835169,-400.0,0.00038356,7]
[381893734,1756393835178,-400.0,0.00038356,7]
[381893735,1756393835188,-400.0,0.00038356,7]
[381893736,1756393835198,-400.0,0.00038356,7]
[381893737,1756393835207,-400.0,0.00038356,7]
[381893738,1756393835216,-400.0,0.00038356,7]
[381893739,1756393835226,-400.0,0.00038356,7]
[381893740,1756393835235,-400.0,0.00038356,7]
[381893741,1756393835244,-400.0,0.00038356,7]
[381893742,1756393835254,-400.0,0.00038356,7]
[381893743,1756393835263,-400.0,0.00038356,7]
[381893744,1756393835272,-400.0,0.00038356,7]
[381893745,1756393835281,-400.0,0.00038356,7]
[381893746,1756393835291,-400.0,0.00038356,7]
[381893747,1756393835300,-131.7806557,0.00038356,7]
[381893748,1756393835316,-268.2193443,0.00038356,7]
[381893749,1756393835325,-30.45799865,0.00038356,7]
[381893750,1756393835341,-369.54200135,0.00038356,7]
[381893751,1756393835350,-288.70799865,0.00038356,7]
[381893752,1756393835361,-111.29200135,0.00038356,7]
[381893753,1756393835370,-400.0,0.00038356,7]
[381893754,1756393835380,-400.0,0.00038356,7]
[381893755,1756393835389,-400.0,0.00038356,7]
[381893756,1756393835398,-400.0,0.00038356,7]
[381893757,1756393835407,-400.0,0.00038356,7]
[381893758,1756393835416,-400.0,0.00038356,7]
[381893759,1756393835425,-455.85,0.00038356,7]
[381893760,1756393835435,-400.0,0.00038356,7]
[381893761,1756393835444,-400.0,0.00038356,7]
[381893762,1756393835454,-400.0,0.00038356,7]
[381893763,1756393835463,-400.0,0.00038356,7]
[381893764,1756393835471,-400.0,0.00038356,7]
[381893765,1756393835481,-198.1,0.00038356,7]
[381893766,1756393835490,-400.0,0.00038356,7]
[381893767,1756393835499,-400.0,0.00038356,7]
[381893768,1756393835508,-400.0,0.00038356,7]
[381893769,1756393835517,-400.0,0.00038356,7]
[381893770,1756393835526,-400.0,0.00038356,7]
[381893771,1756393835535,-400.0,0.00038356,7]
[381893772,1756393835544,-400.0,0.00038356,7]
[381893773,1756393835553,-388.33,0.00038356,7]
[381893774,1756393835562,-400.0,0.00038356,7]
[381893775,1756393835572,-400.0,0.00038356,7]
[381893776,1756393835581,-400.0,0.00038356,7]
[381893777,1756393835590,-400.0,0.00038356,7]
[381893778,1756393835599,-400.0,0.00038356,7]
[381893779,1756393835608,-400.0,0.00038356,7]
[381893780,1756393835618,-272.23,0.00038356,7]
[381893781,1756393835628,-400.0,0.00038356,7]
[381893782,1756393835638,-400.0,0.00038356,7]
[381893783,1756393835647,-239.82,0.00038356,7]
[381893784,1756393835657,-400.0,0.00038356,7]
[381893785,1756393835667,-400.0,0.00038356,7]
[381893786,1756393835676,-400.0,0.00038356,7]
[381893787,1756393835686,-400.0,0.00038356,7]
[381893788,1756393835695,-400.0,0.00038356,7]